bitfinex-derivatives/quotes_BTCF0:USTF0_20240820
["timestamp","ask_amount","ask_price","bid_price","bid_amount"]
[1724154242272,0.3628,60507.0,60506.0,0.30354071]
[1724154243480,0.3628,60507.0,60506.0,0.35302721]
[1724154243680,0.3628,60507.0,60506.0,0.30354071]
[1724154243681,0.41184987,60507.0,60506.0,0.30354071]
[1724154244184,0.41184987,60507.0,60506.0,0.34864071]
[1724154244582,0.05104987,60507.0,60506.0,0.34864071]
[1724154244880,0.002,60507.0,60506.0,0.4146249]
[1724154245278,0.002,60507.0,60506.0,0.41471671]
[1724154247673,0.002,60507.0,60506.0,0.40659099]
[1724154249390,0.002,60507.0,60506.0,0.41485895]
[1724154253287,0.00024789,60508.0,60507.0,0.198225]
[1724154253478,0.00024789,60508.0,60507.0,0.53246157]
[1724154253993,0.00024789,60508.0,60507.0,0.53472456]
[1724154254189,0.00024789,60508.0,60507.0,0.61720296]
[1724154254585,0.00024789,60508.0,60507.0,0.73140296]
[1724154254786,0.00324789,60508.0,60507.0,0.73140296]
[1724154254987,0.00324789,60508.0,60507.0,0.52308799]
[1724154255190,0.00324789,60508.0,60507.0,0.40888799]
[1724154255397,0.00324789,60508.0,60507.0,0.52308799]
[1724154255895,0.04904987,60513.0,60512.0,0.132138]
[1724154256088,0.06540103,60517.0,60516.0,0.066065]
[1724154256391,0.06543145,60517.0,60516.0,0.16368207]
[1724154256695,0.3608,60521.0,60520.0,0.066061]
[1724154256885,0.3608,60521.0,60520.0,0.18252399]
[1724154259186,0.3888,60521.0,60520.0,0.18252399]
[1724154259388,0.45423409,60521.0,60520.0,0.18252399]
[1724154259584,0.45423933,60521.0,60520.0,0.18252399]
[1724154259994,0.45423933,60521.0,60520.0,0.18963029]
[1724154260584,0.3888,60521.0,60520.0,0.18963029]
[1724154261796,0.45423933,60521.0,60520.0,0.18963029]
[1724154261994,0.52029933,60521.0,60520.0,0.19189276]
[1724154262193,0.45486,60521.0,60520.0,0.19189276]
[1724154262598,0.45486,60521.0,60520.0,0.07769276]
[1724154263096,0.56906,60521.0,60520.0,0.07769276]
[1724154263802,0.59583114,60521.0,60520.0,0.07769276]
[1724154265301,0.58383114,60521.0,60520.0,0.07769276]
[1724154265598,0.56983114,60521.0,60520.0,0.07769276]
[1724154266205,0.57283114,60521.0,60520.0,0.07769276]
[1724154266597,0.56983114,60521.0,60520.0,0.07769276]
[1724154266795,0.57283114,60521.0,60520.0,0.07769276]
[1724154267001,0.57083114,60521.0,60520.0,0.07769276]
[1724154267200,0.21603114,60521.0,60520.0,0.07769276]
[1724154267404,0.57683114,60521.0,60520.0,0.07769276]
[1724154267799,0.57083114,60521.0,60520.0,0.07769276]
[1724154267997,0.57683114,60521.0,60520.0,0.07769276]
[1724154268800,0.57583114,60521.0,60520.0,0.07769276]
[1724154269398,0.57683114,60521.0,60520.0,0.00438387]
[1724154269604,0.64289114,60521.0,60520.0,0.00438387]
[1724154269995,4.40689114,60521.0,60520.0,0.00438387]
[1724154270200,4.41189114,60521.0,60520.0,0.00438387]
[1724154270695,4.38512,60521.0,60520.0,0.00438387]
[1724154270895,4.38712,60521.0,60520.0,0.00438387]
[1724154271300,5.30957172,60521.0,60520.0,0.00438387]
[1724154271502,5.30657172,60521.0,60520.0,0.00438387]
[1724154271795,5.31157172,60521.0,60520.0,0.00438387]
[1724154273310,5.31157179,60521.0,60520.0,0.00438387]
[1724154273704,5.2848,60521.0,60520.0,0.00438387]
[1724154273904,5.31157327,60521.0,60520.0,0.00438387]
[1724154274306,5.34625289,60521.0,60520.0,0.00438387]
[1724154274716,5.41231289,60521.0,60520.0,0.00438387]
[1724154274908,5.37763327,60521.0,60520.0,0.00438387]
[1724154276410,0.132132,60515.0,60514.0,0.00024789]
[1724154276609,1.12301893,60515.0,60514.0,0.00024789]
[1724154277010,1.52301893,60515.0,60514.0,0.00024789]
[1724154278223,1.49624566,60515.0,60514.0,0.00024789]
[1724154278424,1.52302016,60515.0,60514.0,0.00324789]
[1724154279419,1.52302016,60515.0,60514.0,0.00024789]
[1724154279723,1.54102016,60515.0,60514.0,0.00024789]
[1724154280317,1.54798182,60515.0,60514.0,0.00024789]
[1724154282232,0.65222182,60515.0,60514.0,0.00024789]
[1724154282922,0.6522226,60515.0,60514.0,0.00024789]
[1724154288621,0.62544732,60515.0,60514.0,0.00024789]
[1724154288822,4.42222272,60515.0,60514.0,0.00024789]
[1724154296442,4.06142272,60515.0,60514.0,0.00024789]
[1724154296633,4.42222272,60515.0,60514.0,0.00024789]
[1724154296834,4.42222266,60515.0,60514.0,0.00024789]
[1724154297241,4.52045105,60515.0,60514.0,0.00024789]
[1724154297434,4.58651721,60515.0,60514.0,0.00024789]
[1724154298141,5.38404882,60515.0,60514.0,0.00024789]
[1724154298734,5.38404882,60515.0,60514.0,8.9e-07]
[1724154298940,4.85779051,60515.0,60484.0,0.0956]
[1724154299130,4.85779051,60515.0,60473.0,0.1305047]
[1724154299131,0.066113,60472.0,60471.0,0.04953489]
[1724154299337,0.066113,60472.0,60457.0,0.04953443]
[1724154299338,0.066124,60462.0,60457.0,0.04953443]
[1724154299532,0.8358,60472.0,60453.0,0.06604606]
[1724154299533,0.475,60458.0,60453.0,0.06604606]
[1724154299740,0.04894462,60455.0,60453.0,0.15]
[1724154300036,0.3608,60458.0,60453.0,0.15]
[1724154300037,0.00012822,60454.0,60453.0,0.15]
[1724154300241,0.00012822,60454.0,60442.0,0.066145]
[1724154300446,0.0652574,60450.0,60443.0,0.2859]
[1724154300636,0.3608,60448.0,60443.0,0.16]
[1724154300838,0.4260574,60448.0,60443.0,0.65632]
[1724154301034,0.3608,60448.0,60444.0,0.49632]
[1724154301235,0.3608,60448.0,60444.0,0.65632]
[1724154301436,0.3608,60448.0,60445.0,0.49632]
[1724154301644,0.3608,60448.0,60445.0,0.65632]
[1724154301846,0.3608,60448.0,60446.0,0.49632]
[1724154302046,0.3608,60448.0,60446.0,0.65632]
[1724154302347,0.3608,60448.0,60447.0,0.49632]
[1724154302536,0.3618,60448.0,60447.0,0.49632]
[1724154302737,0.3618,60448.0,60447.0,0.89632]
[1724154302945,0.3628,60448.0,60447.0,0.89632]
[1724154303440,0.3628,60448.0,60447.0,0.49632]
[1724154303631,0.3628,60448.0,60447.0,0.89632]
[1724154304641,0.3608,60453.0,60447.0,1.18222]
[1724154304839,0.2859,60453.0,60451.0,0.066136]
[1724154305346,0.2859,60453.0,60451.0,0.962416]
[1724154305940,0.2859,60453.0,60451.0,0.066136]
[1724154305941,0.002,60453.0,60451.0,0.066136]
[1724154306244,0.002,60453.0,60447.0,0.2859]
[1724154306439,0.002,60453.0,60445.0,0.066142]
[1724154306745,0.068134,60453.0,60444.0,0.50604]
[1724154306938,0.068134,60453.0,60444.0,0.5044]
[1724154308143,0.068134,60453.0,60448.0,0.066139]
[1724154308144,0.002,60453.0,60448.0,0.066139]
[1724154308538,0.002,60453.0,60445.0,0.3628]
[1724154308938,0.001,60453.0,60450.0,0.066137]
[1724154309134,0.002,60453.0,60452.0,0.066135]
[1724154309449,0.001,60453.0,60452.0,0.066135]
[1724154309634,0.002,60453.0,60452.0,0.066135]
[1724154311146,0.0002481,60460.0,60453.0,0.49624]
[1724154311341,0.0002481,60460.0,60459.0,0.2859]
[1724154311536,0.0002481,60460.0,60459.0,0.512027]
[1724154311738,0.066115,60470.0,60465.0,0.066121]
[1724154312046,0.066115,60470.0,60466.0,0.0931]
[1724154313253,0.3608,60472.0,60466.0,0.001]
[1724154313448,0.426919,60467.0,60466.0,0.001]
[1724154313644,0.426919,60467.0,60466.0,0.00025462]
[1724154313949,0.426919,60467.0,60466.0,0.00125462]
[1724154314746,0.426919,60467.0,60466.0,0.004]
[1724154315356,0.426919,60467.0,60466.0,0.006]
[1724154315556,0.426919,60467.0,60466.0,0.004]
[1724154316352,0.3608,60467.0,60466.0,0.004]
[1724154316652,0.3608,60467.0,60466.0,0.07012]
[1724154316960,0.3608,60467.0,60466.0,0.21012]
[1724154317151,0.0002481,60474.0,60473.0,0.066112]
[1724154318451,0.0072481,60474.0,60473.0,0.066112]
[1724154318749,0.3608,60484.0,60483.0,0.066101]
[1724154319150,0.066093,60490.0,60486.0,0.066097]
[1724154319551,0.066093,60490.0,60487.0,0.066096]
[1724154319952,0.3608,60493.0,60483.0,0.3608]
[1724154320250,0.012,60490.0,60484.0,0.0944]
[1724154320554,0.012,60490.0,60489.0,0.351995]
[1724154320750,0.012,60490.0,60489.0,0.501995]
[1724154320960,0.012,60490.0,60489.0,1.397955]
[1724154321462,0.0002481,60495.0,60494.0,0.066089]
[1724154323160,0.0012481,60495.0,60494.0,0.073089]
[1724154324061,0.0012481,60495.0,60494.0,0.077089]
[1724154324868,0.0002481,60495.0,60494.0,0.066089]
[1724154325057,0.0012481,60495.0,60494.0,0.075089]
[1724154325564,0.0002481,60495.0,60494.0,0.068089]
[1724154325766,0.0002481,60495.0,60494.0,0.074089]
[1724154329656,0.0002481,60495.0,60494.0,0.434889]
[1724154330155,0.426879,60503.0,60494.0,0.434889]
[1724154330156,0.3608,60503.0,60502.0,0.06608]
[1724154330965,0.44238966,60503.0,60494.0,0.3688]
[1724154331154,0.06493564,60496.0,60495.0,0.066088]
[1724154331768,0.066084,60499.0,60496.0,0.066087]
[1724154331769,0.3608,60497.0,60496.0,0.066087]
[1724154332364,0.066087,60496.0,60493.0,0.06609]
[1724154332668,0.14767666,60496.0,60495.0,0.004]
[1724154332859,0.066087,60496.0,60495.0,0.004]
[1724154333052,0.0951042,60496.0,60493.0,0.06609]
[1724154333259,0.081177,60495.0,60493.0,0.06609]
[1724154333466,0.147264,60496.0,60493.0,0.06609]
[1724154333869,0.081177,60496.0,60492.0,0.0002481]
[1724154334066,0.06609,60493.0,60492.0,0.1702481]
[1724154334762,0.06609,60493.0,60492.0,0.0002481]
[1724154334959,0.14391993,60493.0,60492.0,0.0002481]
[1724154335165,0.70592993,60493.0,60492.0,0.0002481]
[1724154335361,0.70592993,60493.0,60487.0,0.3608]
[1724154335362,0.066096,60488.0,60487.0,0.3608]
[1724154335668,0.09502593,60488.0,60487.0,0.3608]
[1724154335864,0.02892993,60488.0,60482.0,0.00670969]
[1724154336061,0.02892993,60488.0,60480.0,0.3608]
[1724154336062,0.066103,60481.0,60480.0,0.3608]
[1724154337066,0.14733037,60481.0,60480.0,0.3608]
[1724154338167,0.09673892,60481.0,60480.0,0.3608]
[1724154338875,0.068103,60481.0,60480.0,0.3628]
[1724154339570,0.002,60481.0,60480.0,0.428904]
[1724154339760,0.002,60481.0,60480.0,0.426904]
[1724154339958,0.002,60481.0,60480.0,0.430904]
[1724154340276,0.04878013,60484.0,60482.0,0.066102]
[1724154340766,0.04878013,60484.0,60483.0,0.066101]
[1724154341162,0.13113818,60486.0,60483.0,0.066101]
[1724154341671,0.066099,60485.0,60483.0,0.066101]
[1724154342064,0.13113918,60485.0,60484.0,0.0661]
[1724154342265,0.06504018,60485.0,60484.0,0.0661]
[1724154342459,0.06504018,60486.0,60485.0,0.066099]
[1724154343068,0.066098,60486.0,60485.0,0.066099]
[1724154344972,0.066098,60486.0,60485.0,0.069099]
[1724154345172,0.066098,60486.0,60485.0,0.003]
[1724154345473,0.069098,60486.0,60485.0,0.003]
[1724154345670,0.08830022,60486.0,60479.0,0.00654296]
[1724154345971,0.08130022,60485.0,60479.0,0.16]
[1724154346468,0.003,60486.0,60479.0,0.16]
[1724154346469,0.08130022,60484.0,60479.0,0.16]
[1724154346674,0.066104,60481.0,60479.0,0.16]
[1724154347463,0.066104,60481.0,60480.0,0.066104]
[1724154347767,0.066104,60481.0,60480.0,0.206104]
[1724154348370,0.066104,60481.0,60480.0,0.14]
[1724154348569,0.066104,60481.0,60480.0,0.14226354]
[1724154348776,0.922944,60481.0,60480.0,0.00226354]
[1724154349077,0.45755698,60481.0,60480.0,0.00226354]
[1724154349270,0.45755698,60481.0,60480.0,0.00426354]
[1724154349668,0.03065298,60481.0,60480.0,0.07036754]
[1724154349971,0.002,60481.0,60480.0,0.21036754]
[1724154350274,0.005,60481.0,60480.0,0.20836754]
[1724154350568,0.009,60481.0,60480.0,0.20936754]
[1724154351776,0.006,60481.0,60480.0,0.20936754]
[1724154352073,0.14774324,60486.0,60481.0,0.066102]
[1724154352572,0.14774324,60486.0,60483.0,0.00226354]
[1724154353373,0.14774324,60486.0,60483.0,0.23836454]
[1724154353571,0.14774324,60486.0,60484.0,0.00226354]
[1724154353771,0.14774324,60486.0,60484.0,0.17226354]
[1724154353970,0.02885873,60485.0,60484.0,0.1143992]
[1724154354469,0.066099,60486.0,60484.0,0.1143992]
[1724154354667,0.13278846,60485.0,60484.0,0.1143992]
[1724154354868,0.02885873,60485.0,60484.0,0.1143992]
[1724154355062,0.10251992,60485.0,60484.0,0.1143992]
[1724154355275,0.13137865,60485.0,60484.0,0.1143992]
[1724154355575,0.13137865,60485.0,60484.0,0.1163992]
[1724154355976,0.19747765,60485.0,60484.0,0.1163992]
[1724154356271,0.19747765,60485.0,60484.0,0.1173992]
[1724154357064,0.13137865,60485.0,60484.0,0.1834992]
[1724154357265,0.11455647,60492.0,60484.0,0.1834992]
[1724154357266,0.09802716,60491.0,60490.0,0.066093]
[1724154357472,0.09802437,60492.0,60491.0,0.066092]
[1724154357773,0.09802437,60493.0,60492.0,0.066091]
[1724154357972,0.09802437,60493.0,60492.0,0.285591]
[1724154358475,0.02878045,60495.0,60494.0,0.066089]
[1724154358677,0.02878045,60495.0,60494.0,0.206089]
[1724154358678,0.02678113,60495.0,60494.0,0.206089]
[1724154358869,0.02678065,60495.0,60494.0,0.14]
[1724154359179,0.02678059,60495.0,60494.0,0.206089]
[1724154359373,0.0267806,60498.0,60494.0,1.39672]
[1724154359574,0.09802604,60498.0,60497.0,0.351986]
[1724154359772,0.0267806,60498.0,60497.0,0.206086]
[1724154360168,0.09827414,60499.0,60498.0,0.066085]
[1724154360374,0.09827414,60499.0,60498.0,0.273485]
[1724154360585,0.02709972,60499.0,60498.0,0.273485]
[1724154360872,0.02709972,60499.0,60498.0,0.113485]
[1724154361077,0.0002481,60499.0,60498.0,0.113485]
[1724154361770,0.06760999,60499.0,60498.0,0.113485]
[1724154362179,0.0022481,60499.0,60498.0,0.113485]
[1724154362871,0.0022481,60499.0,60498.0,0.114485]
[1724154363182,0.06759419,60499.0,60498.0,0.264485]
[1724154363881,0.0022481,60499.0,60498.0,0.264485]
[1724154364677,0.05124022,60499.0,60498.0,0.264485]
[1724154365080,0.0022481,60499.0,60498.0,0.264485]
[1724154365277,0.0022481,60499.0,60498.0,0.760365]
[1724154366570,0.0022481,60499.0,60498.0,0.264485]
[1724154366971,0.0022481,60499.0,60498.0,0.33057]
[1724154367982,0.0022481,60499.0,60498.0,0.69137]
[1724154368680,0.0022481,60499.0,60498.0,0.69363304]
[1724154369284,0.10010586,60499.0,60498.0,1.18951304]
[1724154369579,0.1000866,60499.0,60498.0,1.47541304]
[1724154369784,0.12719872,60499.0,60498.0,1.47541304]
[1724154369982,0.02936022,60499.0,60498.0,1.47541304]
[1724154371583,0.0978385,60502.0,60501.0,0.132162]
[1724154371784,0.066074,60508.0,60505.0,0.066077]
[1724154371982,0.066078,60504.0,60498.0,0.36406304]
[1724154372179,0.12432754,60503.0,60501.0,0.066081]
[1724154372380,0.066078,60504.0,60501.0,0.066081]
[1724154372381,0.12432754,60502.0,60501.0,0.226081]
[1724154372684,0.12432754,60502.0,60501.0,0.00226304]
[1724154372685,0.23900754,60502.0,60501.0,0.00226304]
[1724154372888,0.23900754,60502.0,60494.0,0.36736033]
[1724154372889,0.066084,60499.0,60494.0,0.00656033]
[1724154373185,0.066084,60499.0,60486.0,0.3608]
[1724154373186,0.3608,60495.0,60486.0,0.3608]
[1724154373379,0.066092,60491.0,60488.0,0.066095]
[1724154373688,0.18470289,60491.0,60488.0,0.066095]
[1724154374185,0.18470289,60491.0,60486.0,0.3608]
[1724154374186,0.066097,60487.0,60486.0,0.3608]
[1724154374384,0.09287943,60487.0,60486.0,0.3608]
[1724154374581,0.066097,60487.0,60486.0,0.3608]
[1724154374982,0.1183892,60490.0,60486.0,0.3608]
[1724154375185,0.1183892,60489.0,60486.0,0.3608]
[1724154375490,0.1183892,60488.0,60486.0,0.430897]
[1724154375685,0.1183892,60487.0,60486.0,0.430897]
[1724154375993,0.04889243,60489.0,60488.0,0.066095]
[1724154376190,0.04989243,60490.0,60489.0,0.066094]
[1724154376784,0.001,60490.0,60489.0,0.066094]
[1724154377792,0.002,60490.0,60489.0,0.072094]
[1724154378492,0.001,60490.0,60489.0,0.076094]
[1724154378992,0.04889243,60492.0,60491.0,0.066092]
[1724154380191,0.00024789,60493.0,60491.0,0.066092]
[1724154380385,0.00024789,60493.0,60489.0,0.009]
[1724154380587,0.0654378,60493.0,60489.0,0.009]
[1724154380788,0.066093,60490.0,60489.0,0.009]
[1724154380981,0.066093,60490.0,60489.0,0.004]
[1724154381185,0.066093,60490.0,60489.0,0.005]
[1724154381380,0.066093,60490.0,60489.0,0.001]
[1724154381885,0.066093,60490.0,60488.0,0.066095]
[1724154382099,0.048,60489.0,60488.0,0.066095]
[1724154383302,0.048,60489.0,60488.0,0.206095]
[1724154383590,0.048,60489.0,60488.0,0.210095]
[1724154383991,0.048,60489.0,60488.0,0.144]
[1724154383992,0.14578486,60489.0,60488.0,0.144]
[1724154384196,0.07478226,60489.0,60488.0,0.144]
[1724154384393,0.07478226,60489.0,60488.0,0.210095]
[1724154384591,0.048,60489.0,60488.0,0.211095]
[1724154384795,0.07478169,60489.0,60488.0,0.211095]
[1724154384990,0.17270708,60489.0,60488.0,0.211095]
[1724154385192,0.02678169,60489.0,60488.0,0.210095]
[1724154385488,0.02678195,60492.0,60490.0,0.066092]
[1724154385688,0.02678195,60492.0,60491.0,0.066092]
[1724154386094,0.11726162,60492.0,60491.0,0.066092]
[1724154386396,0.11729326,60492.0,60491.0,0.066092]
[1724154386592,0.02678195,60492.0,60491.0,0.066092]
[1724154387598,0.02678172,60492.0,60491.0,0.066092]
[1724154387795,0.02878172,60492.0,60491.0,0.066092]
[1724154387989,0.02878172,60492.0,60491.0,0.067092]
[1724154388392,0.02878172,60492.0,60491.0,0.066092]
[1724154388586,0.02678172,60492.0,60491.0,0.068092]
[1724154388793,0.02678172,60492.0,60491.0,0.238092]
[1724154389492,0.02878172,60492.0,60491.0,0.237092]
[1724154390295,0.02878172,60492.0,60491.0,0.23935504]
[1724154391105,0.06732512,60492.0,60491.0,0.23935504]
[1724154392889,0.06732512,60492.0,60491.0,0.24644421]
[1724154393995,0.06732512,60492.0,60491.0,0.07644421]
[1724154395011,0.002,60492.0,60491.0,0.07644421]
[1724154396305,0.068091,60492.0,60491.0,0.07644421]
[1724154397612,0.068091,60492.0,60491.0,0.23644421]
[1724154399506,0.002,60492.0,60491.0,0.23644421]
[1724154400208,0.002,60492.0,60491.0,0.23870725]
[1724154400506,0.002,60492.0,60491.0,0.30479925]
[1724154401314,0.002,60492.0,60491.0,0.35422517]
[1724154402009,0.002,60492.0,60491.0,0.71502517]
[1724154402313,0.002,60492.0,60491.0,0.66559925]
[1724154404493,0.002,60492.0,60491.0,1.56151925]
[1724154404494,0.06748393,60492.0,60491.0,1.56151925]
[1724154404698,0.002,60492.0,60491.0,1.67642048]
[1724154405108,0.002,60492.0,60491.0,1.61051925]
[1724154405411,0.002,60492.0,60491.0,1.65851925]
[1724154406595,0.02877698,60492.0,60491.0,1.65851925]
[1724154406804,0.3608,60502.0,60491.0,0.69650725]
[1724154407000,0.11868225,60501.0,60500.0,0.066082]
[1724154407203,0.11868225,60501.0,60500.0,0.216082]
[1724154407807,0.11868225,60501.0,60500.0,0.15]
[1724154408206,0.11868225,60501.0,60500.0,0.15552608]
[1724154408207,0.13068225,60501.0,60500.0,0.15552608]
[1724154408406,0.14068225,60501.0,60500.0,0.15652608]
[1724154408600,0.14068225,60501.0,60500.0,0.22260808]
[1724154409508,0.13651723,60501.0,60500.0,0.22962931]
[1724154409715,0.04877697,60501.0,60500.0,0.22962931]
[1724154410013,0.04877661,60501.0,60500.0,0.22962931]
[1724154411615,0.04877661,60501.0,60500.0,0.29571131]
[1724154412711,0.04877661,60501.0,60500.0,0.29668827]
[1724154413610,0.04877661,60501.0,60500.0,0.58258827]
[1724154414109,0.06541182,60505.0,60503.0,0.066079]
[1724154414314,0.06541182,60505.0,60504.0,0.634756]
[1724154414515,0.06565971,60507.0,60506.0,0.066076]
[1724154414810,0.06565971,60507.0,60506.0,0.236076]
[1724154415310,0.00024789,60507.0,60506.0,0.236076]
[1724154415711,0.00024789,60507.0,60506.0,0.24157904]
[1724154416103,0.01224789,60507.0,60506.0,0.24257904]
[1724154417200,0.01624789,60507.0,60506.0,0.24357904]
[1724154420309,0.37704789,60507.0,60506.0,0.00750304]
[1724154420513,0.44312289,60507.0,60506.0,0.00750304]
[1724154426420,0.52488767,60507.0,60506.0,0.00750304]
[1724154427422,0.52488767,60507.0,60506.0,0.07357904]
[1724154428314,0.44312289,60507.0,60506.0,0.07357904]
[1724154429312,0.4698991,60507.0,60506.0,0.07357904]
[1724154430522,0.4698991,60507.0,60506.0,0.00750304]
[1724154431022,0.066084,60499.0,60497.0,0.3608]
[1724154432111,0.069084,60499.0,60498.0,0.00124789]
[1724154432311,0.069084,60499.0,60498.0,0.06733289]
[1724154432819,0.069084,60499.0,60498.0,0.07450359]
[1724154433620,0.074084,60499.0,60498.0,0.07550359]
[1724154435117,0.008,60499.0,60498.0,0.07550359]
[1724154437326,0.008,60499.0,60498.0,0.14158859]
[1724154437628,0.07345334,60499.0,60498.0,0.29158859]
[1724154437829,0.008,60499.0,60498.0,0.29158859]
[1724154440017,0.20496347,61000.0,60498.0,0.22550359]
[1724154440218,0.20496264,61144.0,60505.0,0.3608]
[1724154440219,0.02677395,60512.0,60505.0,0.3608]
[1724154440430,0.02677395,60512.0,60508.0,0.066073]
[1724154440817,0.02677395,60512.0,60509.0,0.066073]
[1724154441036,0.02677395,60512.0,60510.0,0.066072]
[1724154441516,0.02677395,60512.0,60511.0,0.066071]
[1724154442021,0.3608,60513.0,60512.0,0.06607]
[1724154442316,0.38757322,60513.0,60512.0,0.06607]
[1724154442522,0.38757322,60513.0,60512.0,0.18027]
[1724154442724,0.50577322,60513.0,60512.0,0.06607]
[1724154443316,0.50577322,60513.0,60512.0,0.06707]
[1724154444221,0.60385672,60513.0,60512.0,0.06707]
[1724154444527,0.06607,60512.0,60511.0,0.001]
[1724154444719,0.19092722,60512.0,60511.0,0.001]
[1724154444916,0.19092722,60512.0,60506.0,0.00735722]
[1724154445228,0.02677372,60511.0,60508.0,0.066074]
[1724154445425,0.066076,60506.0,60505.0,0.426877]
[1724154445620,0.066076,60506.0,60505.0,0.066077]
[1724154446125,0.066076,60506.0,60505.0,0.07354612]
[1724154446126,0.20705263,60506.0,60505.0,0.07354612]
[1724154446321,0.20705263,60506.0,60505.0,0.066077]
[1724154446629,0.19093613,60506.0,60505.0,0.066077]
[1724154447521,0.19393613,60506.0,60505.0,0.068077]
[1724154447721,0.1671595,60506.0,60505.0,0.068077]
[1724154447928,0.19393703,60506.0,60505.0,0.068077]
[1724154450528,0.09585353,60506.0,60505.0,0.068077]
[1724154451720,0.09585353,60506.0,60505.0,0.002]
[1724154452618,0.19402505,60506.0,60505.0,0.002]
[1724154454624,0.066084,60499.0,60498.0,0.06633189]
[1724154455532,0.069084,60499.0,60498.0,0.06733189]
[1724154456734,0.071084,60499.0,60498.0,0.06833189]
[1724154459725,0.071084,60499.0,60498.0,0.06833189]
[1724154460427,0.005,60499.0,60498.0,0.06833189]
[1724154464042,0.071084,60499.0,60498.0,0.00224789]
[1724154464627,0.10520832,60499.0,60498.0,0.00224789]
[1724154466528,0.21950832,60499.0,60498.0,0.00224789]
[1724154467231,0.19272803,60499.0,60498.0,0.00224789]
[1724154468032,0.185384,60499.0,60498.0,0.00224789]
[1724154468632,0.546184,60499.0,60498.0,0.00224789]
[1724154469238,0.57296441,60499.0,60498.0,0.00224789]
[1724154471840,0.63904841,60499.0,60498.0,0.00224789]
[1724154472040,0.63904841,60499.0,60493.0,0.07346405]
[1724154472041,0.066089,60494.0,60493.0,0.07346405]
[1724154472228,0.541189,60494.0,60493.0,0.00737405]
[1724154472541,0.066091,60492.0,60491.0,0.066092]
[1724154472742,0.14781473,60492.0,60491.0,0.066092]
[1724154473840,0.14781473,60492.0,60491.0,0.067092]
[1724154474436,0.066091,60492.0,60491.0,0.067092]
[1724154474738,0.066091,60492.0,60491.0,0.001]
[1724154475128,0.543189,60494.0,60491.0,0.001]
[1724154475129,0.08374046,60494.0,60491.0,0.001]
[1724154475348,0.002,60494.0,60493.0,0.18039]
[1724154475933,0.066086,60498.0,60497.0,0.066086]
[1724154476132,0.44254046,60499.0,60498.0,0.066085]
[1724154476329,0.44254046,60499.0,60498.0,0.158485]
[1724154476330,0.3608,60499.0,60498.0,0.158485]
[1724154477848,0.3648,60499.0,60498.0,0.159485]
[1724154478536,0.3688,60499.0,60498.0,0.160485]
[1724154480039,0.3688,60499.0,60498.0,0.596085]
[1724154482441,0.3688,60499.0,60498.0,0.310485]
[1724154483741,0.3688,60499.0,60498.0,0.31793081]
[1724154483943,0.3688,60499.0,60498.0,0.16793081]
[1724154485036,0.434884,60499.0,60498.0,0.00944581]
[1724154485237,0.51662446,60499.0,60498.0,0.00944581]
[1724154485446,0.434884,60499.0,60498.0,0.00944581]
[1724154485644,0.434884,60499.0,60498.0,0.002]
[1724154486939,0.51666247,60499.0,60498.0,0.002]
[1724154487335,0.434884,60499.0,60498.0,0.002]
[1724154487539,0.45057824,60499.0,60498.0,0.068085]
[1724154487741,0.008,60499.0,60498.0,0.068085]
[1724154487947,0.008,60499.0,60498.0,0.238085]
[1724154488844,0.008,60499.0,60498.0,0.28757545]
[1724154489635,0.008,60499.0,60498.0,0.289839]
[1724154493343,0.008,60499.0,60498.0,0.24034855]
[1724154498648,0.008,60499.0,60498.0,0.35454855]
[1724154499849,0.008,60499.0,60498.0,0.42063355]
[1724154500050,0.07339916,60499.0,60498.0,0.42063355]
[1724154500757,0.008,60499.0,60498.0,0.42063355]
[1724154502447,0.07339916,60499.0,60498.0,0.42063355]
[1724154502951,0.008,60499.0,60498.0,0.470124]
[1724154503459,0.008,60499.0,60498.0,0.4701314]
[1724154503956,0.008,60499.0,60498.0,0.42063355]
[1724154505759,0.008,60499.0,60498.0,0.78143355]
[1724154512159,0.008,60499.0,60498.0,0.60114855]
[1724154512462,0.07339916,60499.0,60498.0,0.71534855]
[1724154512756,0.07339916,60499.0,60498.0,0.00426355]
[1724154512757,0.074084,60499.0,60498.0,0.00426355]
[1724154512958,0.10086255,60499.0,60498.0,0.00426355]
[1724154520667,0.10086302,60499.0,60498.0,0.00426355]
[1724154521067,0.10086302,60499.0,60498.0,0.07034855]
[1724154521270,0.074084,60499.0,60498.0,0.07034855]
[1724154522156,0.15583996,60499.0,60498.0,0.07034855]
[1724154524065,0.08975596,60499.0,60498.0,0.07034855]
[1724154526677,0.03477876,60499.0,60498.0,0.07034855]
[1724154533786,0.0897445,60499.0,60498.0,0.07034855]
[1724154534375,0.008,60499.0,60498.0,0.07034855]
[1724154535472,0.008,60499.0,60498.0,0.43114855]
[1724154538675,0.008,60499.0,60498.0,0.07034855]
[1724154538880,0.008,60499.0,60498.0,0.43114855]
[1724154539182,0.008,60499.0,60498.0,0.07034855]
[1724154539393,0.008,60499.0,60498.0,0.43114855]
[1724154540579,0.008,60499.0,60498.0,0.65723355]
[1724154540984,0.008,60499.0,60498.0,0.70675141]
[1724154541282,0.008,60499.0,60498.0,0.65723355]
[1724154541476,0.07345984,60499.0,60498.0,0.65723355]
[1724154542081,0.008,60499.0,60498.0,0.65723355]
[1724154542473,0.07345984,60499.0,60498.0,0.65723355]
[1724154543087,0.008,60499.0,60498.0,0.65723355]
[1724154543984,0.008,60499.0,60498.0,0.59114855]
[1724154544183,0.008,60499.0,60498.0,0.70534855]
[1724154548585,0.008,60499.0,60498.0,0.34454855]
[1724154548897,0.008,60499.0,60498.0,0.70534855]
[1724154551379,0.008,60499.0,60498.0,0.43114855]
[1724154554688,0.074084,60499.0,60498.0,0.07034855]
[1724154554887,0.2700285,60499.0,60498.0,0.00426355]
[1724154555087,3.958284,60499.0,60498.0,0.00426355]
[1724154555397,3.98506237,60499.0,60498.0,0.00426355]
[1724154556000,0.21506294,60499.0,60498.0,0.00426355]
[1724154557600,0.31323446,60499.0,60498.0,0.00426355]
[1724154558803,0.21506294,60499.0,60498.0,0.07034855]
[1724154559499,0.14097894,60499.0,60498.0,0.07034855]
[1724154559698,0.01506294,60499.0,60498.0,0.07034855]